bitfinex-derivatives/quotes_SOLF0:USTF0_20260123
["timestamp","ask_amount","ask_price","bid_price","bid_amount"]
[1769197201812,7.0473,127.87,127.81,55.53677227]
[1769197202017,36.24820769,127.89,127.81,55.53677227]
[1769197203029,7.0468,127.88,127.81,55.53677227]
[1769197204817,36.77999387,127.88,127.81,55.53677227]
[1769197205015,119.0,127.87,127.81,55.53677227]
[1769197205218,119.0,127.86,127.77,61.97731666]
[1769197205418,119.0,127.85,127.77,61.97731666]
[1769197206533,119.0,127.85,127.77,67.06658001]
[1769197208023,119.0,127.85,127.8,61.12973788]
[1769197208624,37.33224658,127.84,127.77,61.12973788]
[1769197209427,7.0501,127.82,127.77,61.12973788]
[1769197209833,7.0501,127.82,127.74,61.12973788]
[1769197210528,7.0501,127.82,127.75,7.0538]
[1769197210731,7.0501,127.82,127.75,68.18353788]
[1769197211133,37.67856497,127.82,127.75,61.12973788]
[1769197211434,37.67856497,127.82,127.73,7.0544]
[1769197211628,37.67856497,127.82,127.73,68.18413788]
[1769197213031,7.0511,127.8,127.73,68.18413788]
[1769197213332,119.0,127.83,127.75,61.12973788]
[1769197213538,156.90284401,127.83,127.75,61.12973788]
[1769197213838,0.05486414,127.8,127.75,61.12973788]
[1769197214934,0.05486414,127.8,127.75,68.18343788]
[1769197215332,0.05486414,127.8,127.75,61.12973788]
[1769197215736,0.05486414,127.8,127.7,114.85316335]
[1769197215737,0.05486414,127.8,127.72,61.12973788]
[1769197216037,119.0,127.79,127.72,61.12973788]
[1769197216238,119.0,127.78,127.73,68.18453788]
[1769197216440,38.23062,127.84,127.73,61.12973788]
[1769197216633,62.185327,127.81,127.73,61.12973788]
[1769197218037,69.235927,127.81,127.73,68.18413788]
[1769197218443,69.235927,127.81,127.73,61.12973788]
[1769197218637,69.235927,127.81,127.74,7.0541]
[1769197220342,62.185327,127.8,127.71,61.12973788]
[1769197220645,62.185327,127.8,127.7,61.12973788]
[1769197220841,1.99896619,127.77,127.72,7.0554]
[1769197221043,1.99896619,127.77,127.7,63.12870407]
[1769197221544,1.99896619,127.77,127.72,7.0554]
[1769197221745,64.18429319,127.78,127.72,7.0554]
[1769197221941,64.18429319,127.78,127.7,61.12973788]
[1769197222243,64.18429319,127.78,127.7,63.12870407]
[1769197222630,62.185327,127.78,127.72,7.0553]
[1769197226746,69.237527,127.78,127.7,61.12973788]
[1769197227044,67.28333833,127.81,127.7,61.12973788]
[1769197227250,62.185327,127.81,127.72,61.12973788]
[1769197227446,62.185327,127.84,127.74,61.12973788]
[1769197227744,62.185327,127.84,127.75,61.12973788]
[1769197228049,69.234127,127.84,127.77,7.0521]
[1769197228344,62.185327,127.84,127.75,61.12973788]
[1769197229938,62.185327,127.84,127.78,7.0521]
[1769197232047,109.6209,127.88,127.75,66.22774921]
[1769197232048,72.41318162,127.87,127.77,61.12973788]
[1769197232347,72.41318162,127.87,127.77,66.22774921]
[1769197232843,65.36558162,127.9,127.78,62.2855683]
[1769197233042,65.36558162,127.9,127.8,62.2855683]
[1769197233237,65.36558162,127.9,127.81,62.2855683]
[1769197233554,65.36558162,127.9,127.83,7.0493]
[1769197233740,65.36558162,127.9,127.81,62.2855683]
[1769197234247,72.41118162,127.9,127.82,7.0498]
[1769197236448,65.36558162,127.9,127.83,7.0493]
[1769197236850,65.36558162,127.9,127.82,62.2855683]
[1769197237549,65.36558162,127.9,127.84,7.0488]
[1769197239245,65.36558162,127.9,127.82,62.2855683]
[1769197239553,72.41138162,127.9,127.8,109.6803]
[1769197239757,58.0,127.9,127.83,62.2855683]
[1769197239956,65.36558162,127.91,127.83,62.2855683]
[1769197240654,65.36558162,127.91,127.85,7.0482]
[1769197242260,65.36558162,127.91,127.86,7.0476]
[1769197242650,65.36558162,127.91,127.84,62.2855683]
[1769197243460,58.0,127.92,127.87,7.0471]
[1769197244053,123.36558162,127.93,127.87,7.0471]
[1769197244558,65.36558162,127.92,127.87,7.0471]
[1769197244752,65.36558162,127.92,127.86,62.2855683]
[1769197245160,65.36558162,127.92,127.86,69.3327683]
[1769197246062,65.36558162,127.92,127.87,7.0469]
[1769197247058,0.0600682,127.91,127.87,7.0469]
[1769197247859,0.0600682,127.91,127.88,7.0466]
[1769197249962,0.0600682,127.91,127.87,7.0471]
[1769197251553,0.0600682,127.91,127.88,7.0464]
[1769197254571,0.0600682,127.91,127.89,7.046]
[1769197255771,0.0600682,127.91,127.87,7.0467]
[1769197256067,0.0600682,127.91,127.86,62.2855683]
[1769197256971,0.0600682,127.91,127.88,7.0464]
[1769197260370,45.4448682,127.93,127.88,62.2855683]
[1769197260672,33.6881682,127.93,127.88,64.33154264]
[1769197260866,7.06315606,127.93,127.89,1.9930945]
[1769197261066,5.606e-05,127.93,127.89,1.9930945]
[1769197261473,5.606e-05,127.93,127.91,7.0449]
[1769197261771,5.606e-05,127.93,127.9,64.2786628]
[1769197262270,5.606e-05,127.93,127.91,7.0444]
[1769197262478,5.606e-05,127.93,127.9,64.33558368]
[1769197262960,5.606e-05,127.93,127.92,7.0444]
[1769197263163,65.36558162,127.98,127.92,69.70505304]
[1769197264262,65.36558162,127.98,127.94,0.05089449]
[1769197264465,1.9930945,127.99,127.96,7.0422]
[1769197264661,1.9930945,128.0,127.96,7.0422]
[1769197265270,1.9930945,128.0,127.93,109.5691]
[1769197265271,1.9930945,128.0,127.97,0.04962513]
[1769197266278,1.9930945,127.98,127.91,177.29735854]
[1769197266579,65.58829702,127.98,127.92,67.71195854]
[1769197266783,1.9930945,127.99,127.92,177.28825854]
[1769197267179,1.9930945,127.99,127.92,179.28135304]
[1769197267477,1.9930945,128.0,127.93,64.81861029]
[1769197267986,1.9930945,127.99,127.95,7.0424]
[1769197268891,1.9930945,127.98,127.94,7.0433]
[1769197270482,67.35137398,127.99,127.95,7.0424]
[1769197271985,67.35137398,127.99,127.93,64.81861029]
[1769197272185,1.9930945,127.98,127.91,66.81170479]
[1769197272387,1.9930945,127.96,127.91,64.81861029]
[1769197272593,67.35137398,127.97,127.91,64.81861029]
[1769197273085,67.35137398,127.97,127.91,71.86351029]
[1769197273678,67.35137398,127.97,127.91,73.85660479]
[1769197273883,65.35827948,127.97,127.91,73.85660479]
[1769197274678,67.35137398,127.97,127.91,71.86351029]
[1769197275992,65.35827948,127.97,127.92,1.9930945]
[1769197276891,65.35827948,127.97,127.91,66.81170479]
[1769197277790,65.35827948,127.97,127.91,73.85650479]
[1769197278390,65.35827948,127.97,127.92,9.0374945]
[1769197278583,74.39197398,127.99,127.93,1.9930945]
[1769197278789,72.39887948,127.99,127.92,73.85610479]
[1769197280480,65.35827948,127.99,127.94,1.9930945]
[1769197281286,65.35827948,127.99,127.94,9.0363945]
[1769197282198,72.39827948,128.01,127.94,73.85500479]
[1769197283293,72.39827948,128.01,127.96,1.9930945]
[1769197285092,65.35827948,127.99,127.91,64.81861029]
[1769197285395,65.35827948,127.99,127.93,1.9930945]
[1769197285594,72.39897948,127.99,127.93,1.9930945]
[1769197285794,72.39897948,127.99,127.91,73.85620479]
[1769197287498,72.39897948,127.99,127.93,1.9930945]
[1769197291398,65.35827948,127.99,127.93,73.85540479]
[1769197292094,66.42354977,127.98,127.89,63.67937692]
[1769197292292,64.43045527,127.93,127.87,1.9930945]
[1769197292496,64.43045527,127.93,127.85,65.67247142]
[1769197292689,73.46804977,127.92,127.85,65.67247142]
[1769197293691,64.43045527,127.89,127.83,65.67247142]
[1769197293894,64.43045527,127.89,127.83,1.9930945]
[1769197294490,71.47665527,127.89,127.83,1.9930945]
[1769197294798,71.47665527,127.89,127.81,72.72257142]
[1769197295991,71.47715527,127.88,127.81,63.67937692]
[1769197296192,73.47024977,127.88,127.81,65.67247142]
[1769197297094,66.42354977,127.88,127.81,65.67247142]
[1769197297498,66.42354977,127.88,127.81,72.72287142]
[1769197297695,66.42354977,127.88,127.81,65.67247142]
[1769197299306,73.47024977,127.88,127.81,65.67247142]
[1769197302203,71.47715527,127.88,127.81,65.67247142]
[1769197302403,71.47625527,127.9,127.84,1.9930945]
[1769197302704,64.43045527,127.93,127.86,1.9930945]
[1769197303290,71.47525527,127.92,127.86,1.9930945]
[1769197303490,64.43045527,127.92,127.86,1.9930945]
[1769197303692,71.47555527,127.91,127.86,1.9930945]
[1769197307309,71.47555527,127.91,127.85,1.9930945]
[1769197309717,71.47555527,127.91,127.86,1.9930945]
[1769197309909,71.47555527,127.91,127.87,1.9930945]
[1769197310409,71.47475527,127.93,127.87,1.9930945]
[1769197311716,71.47475527,127.93,127.88,1.9930945]
[1769197312017,71.47485527,127.92,127.88,1.9930945]
[1769197320622,64.43045527,127.92,127.88,1.9930945]
[1769197321009,64.43045527,127.94,127.88,1.9930945]
[1769197321215,64.43045527,127.94,127.89,1.9930945]
[1769197321417,64.43045527,127.94,127.88,1.9930945]
[1769197321822,71.47315527,127.96,127.92,1.9930945]
[1769197322024,68.21426433,127.99,127.95,1.9930945]
[1769197322722,68.21426433,128.03,127.97,1.9930945]
[1769197322912,68.21426433,128.03,127.98,1.99079044]
[1769197323414,75.25316433,128.03,127.98,1.99079044]
[1769197328726,68.21426433,128.03,127.98,1.99079044]
[1769197329724,76.9142121,128.06,128.0,1.99079044]
[1769197329927,69.8773121,128.06,128.02,1.99079044]
[1769197333833,76.9140121,128.06,128.02,1.99079044]
[1769197334130,69.8773121,128.06,128.02,9.044e-05]
[1769197334538,7.0377,128.05,128.02,9.044e-05]
[1769197335223,69.8773121,128.06,128.02,9.044e-05]
[1769197337036,76.9141121,128.06,128.02,9.044e-05]
[1769197338134,109.4512,128.08,127.99,63.37021585]
[1769197338135,69.8773121,128.05,127.99,63.37021585]
[1769197338335,69.8773121,128.02,127.94,63.37021585]
[1769197338531,69.8773121,128.02,127.95,1.99079044]
[1769197338832,71.86810254,128.02,127.94,1.99079044]
[1769197339236,78.90730254,128.02,127.94,1.99079044]
[1769197339626,71.86810254,128.02,127.94,1.99079044]
[1769197339932,69.8773121,128.0,127.93,9.03459044]
[1769197340131,76.9173121,128.0,127.92,63.37021585]
[1769197340329,78.90810254,128.0,127.92,65.36100629]
[1769197341937,78.90810254,128.0,127.92,72.40530629]
[1769197342741,76.9173121,128.0,127.93,1.99079044]
[1769197343134,76.9173121,128.0,127.93,9.03459044]
[1769197346442,78.90810254,128.0,127.93,9.03459044]
[1769197348939,76.9173121,128.0,127.93,72.40480629]
[1769197349142,71.86810254,128.04,127.97,1.99079044]
[1769197349347,69.8773121,128.04,127.99,1.99079044]
[1769197351242,69.8773121,128.04,127.98,7.041]
[1769197351243,69.8773121,128.04,127.98,9.03179044]
[1769197352838,69.8773121,128.04,127.99,1.99079044]
[1769197353039,69.8773121,128.04,127.98,9.03179044]
[1769197353539,69.8773121,128.04,127.99,1.99079044]
[1769197354743,76.9151121,128.04,127.97,63.37021585]
[1769197354944,76.9151121,128.04,127.97,1.99079044]
[1769197355138,76.9151121,128.04,127.97,69.48943312]
[1769197355446,69.8773121,128.04,127.99,1.99079044]
[1769197358644,74.64008512,128.06,127.99,9.03129044]
[1769197359348,72.64929468,128.06,128.0,1.99079044]
[1769197359548,65.61259468,128.06,128.02,1.99079044]
[1769197360547,72.64929468,128.06,128.01,1.99079044]
[1769197362545,72.64929468,128.06,128.0,9.03079044]
[1769197364442,65.61259468,128.04,127.98,69.48943312]
[1769197366052,65.61259468,128.04,127.98,76.53053312]
[1769197366853,65.61259468,128.04,127.99,1.99079044]
[1769197369452,72.65039468,128.04,127.98,1.99079044]
[1769197369846,65.61259468,128.04,127.98,1.99079044]
[1769197370252,65.61259468,128.04,127.98,9.03169044]
[1769197371147,72.65039468,128.04,127.98,9.03169044]
[1769197373651,72.65039468,128.04,127.99,1.99079044]
[1769197374760,72.65039468,128.04,127.98,9.03169044]
[1769197374955,7.0372,128.05,127.99,76.52993312]
[1769197375154,65.61259468,128.06,128.0,1.99079044]
[1769197375458,65.61259468,128.06,128.01,9.02999044]
[1769197375855,65.61259468,128.1,128.03,1.99079044]
[1769197376060,71.68475789,128.09,128.03,1.99079044]
[1769197376262,65.61259468,128.09,128.03,1.99079044]
[1769197376762,65.61259468,128.09,128.04,1.99079044]
[1769197377057,65.61259468,128.09,128.03,7.038]
[1769197377258,65.61259468,128.09,128.03,9.02879044]
[1769197379964,67.60338512,128.07,128.0,69.48943312]
[1769197380553,67.60338512,128.06,128.0,7.04]
[1769197380865,67.60338512,128.06,127.99,1.99079044]
[1769197380866,67.60338512,128.06,127.99,69.48943312]
[1769197381066,67.60338512,128.06,128.0,1.99079044]
[1769197381866,67.60338512,128.06,128.0,9.03069044]
[1769197382063,65.61259468,128.06,128.0,9.03069044]
[1769197382263,65.61259468,128.06,128.01,1.99079044]
[1769197382567,65.61259468,128.06,128.02,1.99079044]
[1769197382866,65.61259468,128.06,128.02,1.9892068]
[1769197383364,65.61259468,128.06,128.01,9.0286068]
[1769197383669,65.61259468,128.06,128.0,1.9892068]
[1769197384562,65.61259468,128.06,128.0,9.0291068]
[1769197386268,65.61259468,128.06,128.0,7.0399]
[1769197386468,67.99678585,128.04,127.98,7.0408]
[1769197386671,67.99678585,128.04,127.98,9.0300068]
[1769197386870,67.99678585,128.04,127.98,7.0408]
[1769197387171,69.98599265,128.04,127.98,7.0408]
[1769197387365,67.99678585,128.04,127.98,7.0408]
[1769197387566,66.60257187,128.06,128.0,1.9892068]
[1769197388970,66.60257187,128.06,128.01,7.0394]
[1769197389868,66.60257187,128.06,127.99,77.32528176]
[1769197390071,66.60257187,128.04,127.99,7.0402]
[1769197390272,68.59177867,128.03,127.97,68.29587496]
[1769197391472,66.60257187,128.03,127.97,68.29587496]
[1769197391966,66.60257187,128.03,127.98,7.0408]
[1769197393475,66.60257187,128.07,127.99,70.28508176]
[1769197393769,66.60257187,128.07,128.0,70.28508176]
[1769197394874,66.60257187,128.07,128.01,7.0394]
[1769197395576,75.62807867,128.07,128.0,75.33587496]
[1769197395973,66.60257187,128.06,128.0,75.33587496]
[1769197396274,66.60257187,128.06,128.0,77.32508176]
[1769197397273,66.60257187,128.06,128.0,75.33587496]
[1769197399476,68.59177867,128.06,128.0,7.04]
[1769197400469,66.60257187,128.06,128.01,7.0394]
[1769197400675,75.62737867,128.08,128.01,77.32448176]
[1769197400876,66.60257187,128.06,127.99,70.28508176]
[1769197401076,68.59177867,128.06,127.99,70.28508176]
[1769197401376,66.60257187,128.04,127.99,7.0401]
[1769197401772,66.60257187,128.04,127.97,70.28508176]
[1769197402978,66.60257187,128.02,127.97,7.0412]
[1769197405481,66.60257187,128.02,127.97,9.0304068]
[1769197406277,66.60257187,128.04,127.98,7.041]
[1769197406481,66.60257187,128.04,127.98,70.28508176]
[1769197410278,66.60257187,128.04,127.98,68.29587496]
[1769197410485,66.60257187,128.04,127.98,70.28508176]
[1769197410786,66.60257187,128.04,127.98,68.29587496]
[1769197411885,73.64037187,128.04,127.98,68.29587496]
[1769197412385,73.64037187,128.04,127.98,70.28508176]
[1769197412780,66.60257187,128.04,127.98,70.28508176]
[1769197413382,66.60257187,128.04,128.0,1.9892068]
[1769197413887,67.74488892,128.06,128.0,1.9892068]
[1769197415991,67.74488892,128.06,127.99,9.0297068]
[1769197417095,67.74488892,128.06,128.0,7.0399]
[1769197420194,67.74488892,128.04,127.97,1.9892068]
[1769197420882,67.74488892,128.04,127.97,69.18130376]
[1769197421888,67.74488892,128.04,127.98,7.041]
[1769197421889,74.78268892,128.04,127.98,7.041]
[1769197422085,67.74488892,128.04,127.98,7.041]
[1769197422286,67.74488892,128.04,127.98,9.0302068]
[1769197423290,67.74488892,128.04,127.99,7.0405]
[1769197423491,69.73409572,128.06,127.99,76.22180376]
[1769197423688,67.74488892,128.06,127.99,76.22180376]
[1769197425284,67.74488892,128.06,128.0,7.0397]
[1769197426691,67.74488892,128.06,128.0,9.0289068]
[1769197426897,67.74488892,128.06,128.0,76.22100376]
[1769197427197,67.74488892,128.06,128.01,7.0394]
[1769197427394,67.74488892,128.08,128.01,69.18130376]
[1769197427589,67.74488892,128.08,128.02,69.18130376]
[1769197428687,67.74488892,128.08,128.03,9.0275068]
[1769197430495,67.74488892,128.08,128.03,7.0383]
[1769197430697,67.74488892,128.08,128.03,9.0275068]
[1769197433800,67.74488892,128.1,128.06,1.9892068]
[1769197435000,67.74488892,128.1,128.06,9.0258068]
[1769197435896,9.0215068,128.15,128.08,1.9892068]
[1769197436106,7.0323,128.15,128.08,1.9892068]
[1769197436699,7.0323,128.15,128.08,9.0247068]
[1769197436905,7.0312,128.17,128.1,1.9892068]
[1769197437500,9.0204068,128.17,128.09,1.9892068]
[1769197437797,67.74488892,128.14,128.08,1.9892068]
[1769197438003,67.74488892,128.14,128.07,1.9892068]
[1769197438304,67.74488892,128.14,128.07,69.18130376]
[1769197438505,67.74488892,128.14,128.08,1.9892068]
[1769197438906,67.74488892,128.14,128.09,7.035]
[1769197440704,69.73409572,128.14,128.07,7.0358]
[1769197441003,67.74488892,128.14,128.08,1.9892068]
[1769197441309,67.74488892,128.14,128.07,69.18130376]
[1769197441501,67.74488892,128.16,128.09,69.18130376]
[1769197441698,67.74488892,128.16,128.1,1.9892068]
[1769197442005,67.74488892,128.16,128.09,69.18130376]
[1769197442906,67.74488892,128.16,128.07,24.0]
[1769197443098,69.20787349,128.13,128.07,24.0]
[1769197443294,69.20787349,128.12,128.07,24.0]
[1769197443494,109.3717,128.17,128.03,1.98663028]
[1769197443495,67.22124321,128.09,128.03,1.98663028]
[1769197443897,67.22124321,128.09,128.02,71.31979795]
[1769197445012,67.22124321,128.09,128.04,7.0378]
[1769197446307,67.22124321,128.09,128.05,7.0372]
[1769197446510,69.20787349,128.08,128.01,69.33316767]
[1769197446711,69.20787349,128.07,128.01,69.33316767]
[1769197448017,67.22124321,128.07,128.03,7.0378]
[1769197449219,67.22124321,128.07,128.04,7.0377]
[1769197449407,67.22124321,128.07,128.01,69.33316767]
[1769197450420,67.22124321,128.07,128.03,7.0383]
[1769197451218,69.20787349,128.07,128.03,7.0383]
[1769197452922,67.22124321,128.07,128.03,7.0383]
[1769197454721,69.20787349,128.07,128.03,7.0383]
[1769197455230,67.22124321,128.07,128.03,7.0383]
[1769197456630,1.98663028,128.08,128.03,7.0383]
[1769197456631,306.11830966,128.17,128.04,70.8818578]
[1769197456832,1.98663028,128.12,128.05,70.8818578]
[1769197457229,1.98663028,128.13,128.08,7.0356]
[1769197457428,1.98663028,128.14,128.08,7.0356]
[1769197458016,1.98663028,128.15,128.08,1.98663028]
[1769197458226,1.98663028,128.16,128.08,70.8818578]
[1769197458622,64.02328648,128.15,128.08,70.8818578]
[1769197459118,64.02328648,128.15,128.1,7.0343]
[1769197460129,66.00991676,128.15,128.1,7.0343]
[1769197460828,66.00991676,128.15,128.08,68.89522752]
[1769197460829,1.98663028,128.13,128.08,68.89522752]
[1769197461629,64.02328648,128.14,128.08,70.8818578]
[1769197462121,66.00991676,128.16,128.1,7.0344]
[1769197462332,66.00991676,128.16,128.09,70.8818578]
[1769197462918,66.00991676,128.15,128.09,7.0346]
[1769197463629,64.02328648,128.15,128.09,7.0346]
[1769197464422,64.02328648,128.15,128.1,7.0344]
[1769197468135,64.02328648,128.15,128.1,9.02103028]
[1769197468327,64.02328648,128.17,128.12,1.98663028]
[1769197468934,64.02328648,128.17,128.12,9.01953028]
[1769197469225,64.02328648,128.2,128.14,1.98663028]
[1769197469616,1.98663028,128.19,128.12,1.98663028]
[1769197469824,64.02328648,128.18,128.12,1.98663028]
[1769197470937,66.00991676,128.18,128.11,1.98663028]
[1769197471229,64.02328648,128.16,128.09,111.41743028]
[1769197471429,64.02328648,128.16,128.1,1.98663028]
[1769197472030,64.02328648,128.16,128.13,7.0328]
[1769197474733,65.15125959,128.14,128.08,71.54949647]
[1769197477035,65.15125959,128.14,128.1,7.034]
[1769197478340,65.15125959,128.14,128.1,7.034]
[1769197485839,1.98663028,128.17,128.1,71.54949647]
[1769197486142,67.13788987,128.18,128.11,71.54949647]
[1769197486333,67.13788987,128.18,128.11,69.56286619]
[1769197486735,65.15125959,128.16,128.09,180.98159647]
[1769197486936,67.13788987,128.16,128.09,69.56286619]
[1769197487549,67.13788987,128.16,128.09,71.54949647]
[1769197487952,67.13788987,128.16,128.11,7.0339]
[1769197490155,67.13788987,128.15,128.11,7.0339]
[1769197490357,65.15125959,128.15,128.11,7.0339]
[1769197492359,67.13788987,128.15,128.08,7.0351]
[1769197492555,67.13788987,128.13,128.08,7.0351]
[1769197492856,67.13788987,128.13,128.07,7.0361]
[1769197493155,67.13788987,128.12,128.07,7.0361]
[1769197493360,65.15125959,128.12,128.07,7.0361]
[1769197493560,67.13788987,128.12,128.07,7.0361]
[1769197494059,65.15125959,128.12,128.07,7.0361]
[1769197499260,65.15125959,128.12,128.08,7.0355]
[1769197501667,67.13788987,128.14,128.08,7.0355]
[1769197502055,67.13788987,128.14,128.07,69.56286619]
[1769197502056,65.15125959,128.14,128.07,71.54949647]
[1769197502258,65.46933395,128.16,128.1,68.94908999]
[1769197502662,65.46933395,128.18,128.11,68.94908999]
[1769197502863,65.46933395,128.18,128.12,68.94805372]
[1769197503268,65.46933395,128.18,128.13,7.0328]
[1769197503468,65.46933395,128.16,128.1,68.94805372]
[1769197503968,65.46933395,128.16,128.11,7.0334]
[1769197505372,65.46933395,128.16,128.12,7.0333]
[1769197507866,69.71586052,128.19,128.13,63.23014773]
[1769197508072,67.73026651,128.19,128.14,1.98559401]
[1769197508973,67.73026651,128.19,128.15,7.0317]
[1769197510072,67.73026651,128.19,128.13,70.26254773]
[1769197510073,69.71586052,128.19,128.13,70.26254773]
[1769197510473,69.71586052,128.19,128.15,7.0317]
[1769197510669,67.73026651,128.19,128.15,7.0317]
[1769197512776,67.73026651,128.22,128.17,7.0306]
[1769197513290,69.71586052,128.22,128.16,9.01679401]
[1769197514190,67.73026651,128.22,128.18,7.0301]
[1769197514380,67.73026651,128.22,128.16,65.21574174]
[1769197514381,1.98559401,128.24,128.17,65.21574174]
[1769197514577,69.71586052,128.24,128.17,65.21574174]
[1769197515285,69.71586052,128.24,128.14,172.61514773]
[1769197515493,69.71586052,128.21,128.15,63.23014773]
[1769197515677,67.73026651,128.21,128.15,63.23014773]
[1769197516078,69.71586052,128.21,128.15,63.23014773]
[1769197516483,69.71586052,128.21,128.16,7.0311]
[1769197516795,67.73026651,128.21,128.12,63.23014773]
[1769197516997,69.71586052,128.18,128.13,7.0328]
[1769197517587,69.71586052,128.18,128.14,7.0323]
[1769197517788,67.73026651,128.18,128.14,7.0323]
[1769197519294,69.71586052,128.2,128.14,7.0323]
[1769197519886,7.028,128.22,128.15,65.21574174]
[1769197519887,67.73026651,128.22,128.15,65.21574174]
[1769197520393,69.71586052,128.22,128.15,65.21574174]
[1769197520794,69.71586052,128.22,128.15,63.23014773]
[1769197521092,69.71586052,128.22,128.16,7.0307]
[1769197521589,69.71586052,128.18,128.11,111.39859401]
[1769197521796,1.98559401,128.17,128.1,174.63904174]
[1769197521994,69.71586052,128.17,128.1,174.63904174]
[1769197522288,69.71586052,128.17,128.11,63.23014773]
[1769197522796,69.71586052,128.14,128.08,63.23014773]
[1769197522990,1.98559401,128.13,128.08,63.23014773]
[1769197523494,69.71586052,128.14,128.1,7.0339]
[1769197523691,67.73026651,128.14,128.08,174.65654174]
[1769197524283,69.71586052,128.16,128.08,174.65654174]
[1769197524488,69.71586052,128.16,128.09,63.23014773]
[1769197524699,69.71586052,128.16,128.11,7.0339]
[1769197524896,1.98559401,128.17,128.1,65.21574174]
[1769197525989,1.98559401,128.17,128.12,7.0333]
[1769197526394,69.71586052,128.17,128.12,7.0333]
[1769197527991,1.98559401,128.16,128.1,63.23014773]
[1769197528194,1.98559401,128.12,128.07,63.23014773]
[1769197528493,9.401e-05,128.12,128.07,63.23014773]
[1769197528891,1.98559401,128.11,128.07,7.0357]
[1769197529592,69.71586052,128.12,128.07,7.0357]
[1769197531093,67.73026651,128.14,128.06,172.68674773]
[1769197531296,67.73026651,128.14,128.07,65.21574174]
[1769197531297,69.71586052,128.14,128.07,65.21574174]
[1769197531883,1.98559401,128.13,128.07,63.23014773]
[1769197532496,67.73026651,128.14,128.07,63.23014773]
[1769197532497,69.71586052,128.14,128.07,65.21574174]
[1769197532995,69.71586052,128.14,128.09,7.035]
[1769197533894,67.73026651,128.14,128.1,7.0344]
[1769197534194,72.09872669,128.16,128.09,70.66080231]
[1769197534604,70.11313268,128.16,128.1,1.98559401]
[1769197535796,70.11313268,128.16,128.1,70.66080231]
[1769197536096,70.11313268,128.16,128.12,7.0333]
[1769197536698,70.11313268,128.16,128.1,75.7092083]
[1769197536898,72.09872669,128.16,128.1,7.034]
[1769197537098,70.11313268,128.16,128.1,7.034]
[1769197537507,70.11313268,128.16,128.11,7.0337]
[1769197538505,70.11313268,128.16,128.11,9.01929401]
[1769197538703,72.09872669,128.16,128.11,7.0337]
[1769197539601,72.09872669,128.16,128.07,178.1238083]
[1769197539798,70.11313268,128.14,128.07,70.66080231]
[1769197539999,72.09872669,128.14,128.07,70.66080231]
[1769197540908,70.11313268,128.12,128.04,363.7952083]
[1769197541097,72.09872669,128.11,128.04,68.6752083]
[1769197541403,72.09872669,128.11,128.04,70.66080231]
[1769197541905,72.09872669,128.11,128.06,7.0367]
[1769197543305,70.11313268,128.11,128.06,7.0367]
[1769197545307,70.11313268,128.15,128.07,1.98559401]
[1769197545606,72.09872669,128.15,128.08,1.98559401]
[1769197546208,70.11313268,128.11,128.05,1.98559401]
[1769197547906,70.11313268,128.11,128.06,7.0366]
[1769197549308,72.09872669,128.11,128.05,7.0372]
[1769197550702,1.98559401,128.1,128.02,68.6752083]
[1769197550908,72.09872669,128.09,128.02,70.66080231]
[1769197551909,72.09872669,128.09,128.04,7.0373]
[1769197552603,70.11313268,128.09,128.04,7.0373]
[1769197553506,72.09872669,128.09,128.01,1.98559401]
[1769197553706,72.09872669,128.09,128.0,68.6752083]
[1769197553707,72.09872669,128.07,128.0,68.6752083]
[1769197553909,72.09872669,128.07,128.0,70.66080231]
[1769197554503,70.11313268,128.07,128.0,70.66080231]
[1769197555405,70.11313268,128.07,128.01,7.0394]
[1769197556512,72.09872669,128.06,128.0,9.02559401]
[1769197556811,70.11313268,128.04,127.97,365.84080231]
[1769197557112,70.11313268,128.04,127.99,7.0404]
[1769197557513,70.11313268,128.04,127.99,9.02599401]
[1769197558605,70.11313268,128.04,127.98,9.02659401]
[1769197561331,72.09872669,128.04,127.98,7.041]
[1769197561509,72.09872669,128.02,127.95,70.66080231]
[1769197561803,72.09872669,128.0,127.93,1.98559401]
[1769197562011,67.93706984,127.99,127.92,70.66080231]
[1769197562206,65.95147583,127.99,127.94,7.0433]
[1769197562405,67.93706984,128.01,127.94,7.0433]
[1769197562603,67.93706984,128.01,127.94,9.02889401]
[1769197562810,67.93706984,128.01,127.94,7.0433]
[1769197563018,67.93706984,128.01,127.95,7.0427]
[1769197564014,67.93706984,128.01,127.93,9.02899401]
[1769197564219,65.95147583,128.03,127.96,1.98559401]
[1769197564716,67.93706984,128.03,127.96,1.98559401]
[1769197564920,67.94242138,128.03,127.96,9.03314555]
[1769197566013,67.94242138,128.03,127.97,7.0416]
[1769197566220,65.95147583,128.1,127.99,1.99094555]
[1769197566414,65.95147583,128.05,128.0,1.99094555]
[1769197566608,65.95147583,128.05,127.99,1.99094555]
[1769197567016,65.95147583,128.05,127.99,9.03124555]
[1769197567315,67.94242138,128.05,127.99,7.0403]
[1769197567522,67.32411384,128.03,127.96,1.99094555]